Cogmind - Beta 17.1 @@@ ROGUE MODE // 2026.09.07 @ 07:08:18 Player: J1ang-5h1 Result: Destroyed by 8G-NYL(E) with Overtuned Barrage Gun Performance ------------- Evolutions (0) 0 Regions Visited (3) 600 Robots Destroyed (52) 260 Value Destroyed (1030) 1030 Prototype IDs (3) 60 Alien Tech Used (0) 0 Bonus (7544) 7544 TOTAL SCORE: 9494 Bonus ------- Follower Combat Kills 492 Prayed to X0-1V1 5000 Major X0-1V1 Interference 2100 Friendly Fire -48 Cogmind --------- Core Integrity 0/150 Matter 797/1000 Energy 1290/1300 System Corruption 1% Temperature Warm (166) Movement Core (400) Ox7 Location -8/Scraptown Parts ------- > --- POWER (1) -------- (None) > --- PROPULSION (2) --- (None) > --- UTILITY (2) ------ Large Storage Unit X0-1V1's Piety Tracker > --- WEAPON (2) ------- Makeshift Sword > --- INVENTORY (15) --- Cooled Ion Engine Makeshift Power Source Wheel Improved Heat Sink High-capacity Battery (250) Medium Matter Pod (0) Structural Scanner Subdweller Optics Improved Hacking Suite V3-11A's Pendant Improved Medium Laser Improved Medium Laser Beam Cannon Peak State ------------ > --- POWER ------------ Makeshift Power Source > --- PROPULSION ------- Light Treads Overtuned Treads > --- UTILITY ---------- Large Storage Unit X0-1V1's Piety Tracker > --- WEAPON ----------- Subdweller Machine Gun Slug Cannon > --- INVENTORY -------- Cooled Ion Engine Makeshift Power Source Wheel Improved Heat Sink High-capacity Battery Medium Matter Pod Structural Scanner Subdweller Optics V3-11A's Pendant Improved Medium Laser Improved Medium Laser Beam Cannon Grenade Launcher Grenade Launcher Makeshift Sword [Rating: 31] Favorites ----------- Power Makeshift Power Source Engine Makeshift Power Source Propulsion Aluminum Leg Treads Light Treads Leg Aluminum Leg Utility Large Storage Unit Device X0-1V1's Piety Tracker Storage Large Storage Unit Weapon Light Cannon Energy Gun Improved Medium Laser Ballistic Gun Subdweller Machine Gun Ballistic Cannon Light Cannon Launcher Grenade Launcher Impact Weapon Hammer Slashing Weapon Makeshift Sword Special Melee Weapon Datajack Build | -11 -10 -10 -8 ------- Run | Yrd Mat Sub Scr Slots Evolved . | . . . . Power . | . . . . Propulsion . | . . . . Utility . | . . . . Weapon . | . . . . Parts Attached 34 | 7 14 9 4 Power 5 | 1 1 3 . Engine 5 | 1 1 3 . Core . | . . . . Reactor . | . . . . Propulsion 10 | 2 4 2 2 Treads 4 | . . 2 2 Leg 6 | 2 4 . . Wheel . | . . . . Hover . | . . . . Flight . | . . . . Utility 5 | 2 3 . . Device 3 | 1 2 . . Storage 2 | 1 1 . . Processor . | . . . . Hackware . | . . . . Protection . | . . . . Artifact . | . . . . Weapon 14 | 2 6 4 2 Energy Gun 1 | . . . 1 Energy Cannon . | . . . . Ballistic Gun 3 | 2 . 1 . Ballistic Cannon 5 | . 3 2 . Launcher 2 | . 1 . 1 Special Weapon . | . . . . Impact Weapon 1 | . 1 . . Slashing Weapon 1 | . . 1 . Piercing Weapon . | . . . . Special Melee Weapon 1 | . 1 . . Unidentified Prototypes 1 | . 1 . . Parts Lost 8 | . . 3 5 Power 2 | . . 1 1 Propulsion 4 | . . 2 2 Utility . | . . . . Weapon 2 | . . . 2 Highest Loss Streak 4 | . . 2 4 To Critical Strikes . | . . . . Average Backups 12 | 6 9 14 14 Power 1 | . . . 2 Propulsion 1 | 2 3 1 1 Utility 4 | 1 1 5 6 Weapon 5 | 1 3 7 5 Tool/Special . | . . . . Unused Backups 22 | 3 3 4 12 Power 3 | 1 . . 2 Propulsion 1 | . . . 1 Utility 10 | 1 1 1 7 Weapon 8 | 1 2 3 2 Tool/Special . | . . . . Average Slot Usage (%) 97 | . 99 96 94 Engine 13 | . 14 12 14 Treads 14 | . . 21 22 Leg 11 | . 28 4 . Device 14 | . 14 14 14 Storage 14 | . 14 14 14 Ballistic Gun 6 | . 2 5 13 Ballistic Cannon 19 | . 23 18 14 Slashing Weapon 1 | . . 3 . Peak Build Rating 31 | 8 20 29 31 Average Rating 19 | 6 7 25 29 On Entrance 14 | . 8 20 28 Avg Prop Armor Cover (%) . | . . . . Naked Turns . | . . . . Heaviest Build 36 | 12 30 36 36 Greatest Support 42 | 20 20 40 42 Greatest Overweight (x) 3 | 3 1 1 1 Average Overweight (x) . | . . . . Largest Inventory Capacity 15 | 8 15 15 15 Average Capacity 13 | 7 10 15 15 Most Carried 15 | 8 15 15 15 Average Carried 12 | 6 9 14 14 Final Capacity 15 | 8 15 15 15 Final Carried 15 | 8 15 15 13 Class Distribution -------------------- 78% | Mutant 12% | Derelict-Mutant 8% | Scavenger-Mutant Dominant Class ---------------- Mutant | -10/Materials Mutant | -10/Subcaves Derelict-Mutant | -8/Scraptown Resources | -11 -10 -10 -8 ----------- Run | Yrd Mat Sub Scr Matter Collected 2210 | 418 741 848 203 Remotely 564 | 215 349 . . Salvage Created 1186 | 242 461 381 102 Parts 112 | 19 43 45 5 Haulers Intercepted 2 | . 2 . . Recyclers Shooed 1 | 1 . . . Parts Field Recycled . | . . . . Retrieved Matter . | . . . . Parts Self-Destructed 37 | . . 37 . Prevented . | . . . . Parts Restored . | . . . . Kills | -11 -10 -10 -8 ------- Run | Yrd Mat Sub Scr Combat Hostiles Destroyed 35 | . 13 21 1 Melee 3 | . . 3 . Guns 4 | . 3 1 . Cannons 16 | . 10 6 . AOE 12 | . . 11 1 Classes Destroyed 13 | 3 7 1 2 Worker 3 | 1 2 . . Builder 1 | . 1 . . Tunneler 6 | 6 . . . Hauler 2 | . 2 . . Recycler 1 | 1 . . . Operator 1 | . 1 . . Watcher 3 | . 3 . . Swarmer 16 | . 3 13 . Grunt 11 | . 8 3 . Artisan 1 | . . 1 . Subdweller 7 | . 2 5 . Scientist 1 | . . . 1 Elite 1 | . . . 1 Best Kill Streak 4 | 2 3 4 2 Combat Bots Only 4 | . 3 4 1 Max Kills in Single Turn 4 | 1 1 4 2 Gunslinging . | . . . . Exploded 4 | . . 4 1 Melee 1 | . . 1 . Uniques/NPCs Destroyed . | . . . . Combat | -11 -10 -10 -8 -------- Run | Yrd Mat Sub Scr Hostile Shots Fired 188 | . 49 94 45 Missed 61 | . 16 31 14 Hits 127 | . 33 63 31 Melee 8 | . . . 8 Projectile 119 | . 33 63 23 Critical Strikes 6 | . 1 1 4 Damage Taken 2017 | . 405 870 742 Core 303 | . 41 123 139 Absorbed by Shields . | . . . . Core Remaining (%) 100 | 100 . . . Volleys Fired 143 | 37 68 31 7 Largest 2 | 2 2 2 2 Hottest 96 | 40 60 63 96 Shots Fired 273 | 74 133 55 11 Gun 100 | 74 17 5 4 Cannon 164 | . 115 44 5 Launcher 9 | . 1 6 2 Special . | . . . . Kinetic 262 | 74 132 49 7 Thermal 2 | . . . 2 Explosive 9 | . 1 6 2 Electromagnetic . | . . . . Robot Hit Streak 11 | 11 6 9 2 Robot Miss Streak 5 | 3 5 4 3 Penetration Max . | . . . . Secondary Targets . | . . . . Shots Hit Robots 157 | 45 65 40 7 Core Hits 70 | 15 24 27 4 Critical Kills 2 | 1 . 1 . Critical Parts Destroyed . | . . . . Critical Strikes 6 | 1 2 1 2 Burn 1 | . . . 1 Destroy 1 | 1 . . . Blast 2 | . 2 . . Smash 1 | . . 1 . Sever 1 | . . . 1 Melee Attacks 26 | . 3 21 2 Impact 6 | . 2 4 . Slashing 19 | . . 17 2 Piercing . | . . . . Sneak Attacks 3 | . 1 2 . Combat Hostiles . | . . . . Follow-up Attacks . | . . . . Damage Inflicted 3293 | 474 1198 1416 205 Guns 639 | 474 61 38 66 Cannons 1616 | . 1108 490 18 Explosions 622 | . 29 481 112 Melee 416 | . . 407 9 Ramming . | . . . . Kinetic 2223 | 474 1169 528 52 Thermal 32 | . . . 32 Explosive 622 | . 29 481 112 Electromagnetic . | . . . . Impact 17 | . . 17 . Slashing 399 | . . 390 9 Piercing . | . . . . Highest Corruption 1 | . . . 1 Average Corruption 1 | . . . 1 Corruption Purged . | . . . . Corruption Blocked . | . . . . Overload Shots . | . . . . Overflow Damage 61 | . 28 33 . Projectiles 28 | . 28 . . Explosions 28 | . . 28 . Melee 5 | . . 5 . Knockbacks 20 | . 18 1 1 Impact . | . . . . Kinetic 19 | . 17 1 1 Secondary 1 | . 1 . . Self-Inflicted Damage . | . . . . Shots . | . . . . Rammed . | . . . . Targets Rammed . | . . . . Kicked . | . . . . Crushed . | . . . . Highest Temperature 188 | . 106 . 188 Average Temperature 51 | . 40 . 76 Received Heat Transfer 696 | . 207 252 237 Siege Activations . | . . . . Martial Activations . | . . . . Shielding Activations . | . . . . Robots Disrupted . | . . . . Combat Hostiles . | . . . . Robots Corrupted . | . . . . Combat Hostiles . | . . . . Parts Fried . | . . . . Impact Corruptions . | . . . . Robots Melted . | . . . . Combat Hostiles . | . . . . Parts Melted 2 | . 1 1 . Heat Transferred 148 | . . . 148 Parts Sabotaged . | . . . . Parts Stolen . | . . . . Parts Stripped . | . . . . Power Chain Reactions . | . . . . Alert | -11 -10 -10 -8 ------- Run | Yrd Mat Sub Scr Maximum Alert Level . | . . . . Low Security (%) 100 | 100 100 . . Level 1 . | . . . . Level 2 . | . . . . Level 3 . | . . . . Level 4 . | . . . . Level 5 . | . . . . High Security . | . . . . Max Security . | . . . . Peak Influence 109 | 5 109 . . Initial . | . . . . Average 27 | 1 31 . . Influence Increases 907 | 40 462 405 . Destroy 0b10 Robot/C 540 | . 220 320 . Destroy 0b10 Robot/NC 85 | 40 45 . . Destroy Leader 60 | . 50 10 . Successful Hack 62 | . 62 . . Select Force Hacks 30 | . 30 . . Disable Machine 15 | . 15 . . Destroy Structure 10 | . 10 . . Lose Combat Pursuer 105 | . 30 75 . Influence Decreases 907 | 40 462 313 92 Entered New Map 92 | . . . 92 Time Decay 805 | 40 462 303 . Lost Part 10 | . . 10 . Squads Dispatched 3 | . 3 . . Investigation 1 | . 1 . . Extermination . | . . . . Reinforcement 2 | . 2 . . Assault . | . . . . Garrison . | . . . . Intercept . | . . . . Searches Triggered . | . . . . Construction Impeded . | . . . . Haulers Reinforced . | . . . . Active Scanning Responses . | . . . . Cargo Convoy Interrupts . | . . . . Stealth | -11 -10 -10 -8 --------- Run | Yrd Mat Sub Scr Distress Signals 2 | . 2 . . Communications Jammed . | . . . . Distress Signals . | . . . . Times Spotted 83 | . 26 33 24 Peak Tracking Total 13 | . 4 6 13 Tactical Retreats 5 | . 2 3 . Traps | -11 -10 -10 -8 ------- Run | Yrd Mat Sub Scr Traps Triggered 3 | . 3 . . Indirectly . | . . . . Trap Hack Attempts 23 | . 23 . . Triggered . | . . . . Disarmed . | . . . . Reprogrammed 1 | . 1 . . Reused . | . . . . Traps Extracted . | . . . . Installed . | . . . . Triggered . | . . . . Machines | -11 -10 -10 -8 ---------- Run | Yrd Mat Sub Scr Machines Disabled 6 | . 1 . 5 Max in Single Turn 1 | . 1 . . Machines Repaired . | . . . . Machines Dismantled . | . . . . Machines Sabotaged . | . . . . Overloaded Fab Kills . | . . . . Hacking | -11 -10 -10 -8 --------- Run | Yrd Mat Sub Scr Machines Accessed 12 | . 10 1 1 Terminals 7 | . 7 . . Fabricators . | . . . . Repair Stations 1 | . 1 . . Recycling Units 2 | . 2 . . Scanalyzers . | . . . . Garrison Access . | . . . . Total Hacks 44 | . 30 5 9 Successful 36 | . 22 5 9 Failed 8 | . 8 . . Catastrophic . | . . . . Database Lockouts . | . . . . Manual 24 | . 24 . . Terminals 21 | . 21 . . Fabricators . | . . . . Repair Stations 2 | . 2 . . Recycling Units 7 | . 7 . . Scanalyzers . | . . . . Garrison Access . | . . . . Terminal Hacks 20 | . 6 5 9 Record 14 | . . 5 9 Robot Analysis 4 | . 4 . . Locate Traps 1 | . 1 . . Hauler Manifests 1 | . 1 . . Fabricator Hacks . | . . . . Repair Station Hacks 1 | . 1 . . Scan Component 1 | . 1 . . Recycling Unit Hacks 2 | . 2 . . Report Inventory 2 | . 2 . . Scanalyzer . | . . . . Garrison Access Hacks . | . . . . Unauthorized Hacks 13 | . 13 . . Terminals 8 | . 8 . . Botnet 2 | . 2 . . Skim 6 | . 6 . . Fabricators . | . . . . Repair Stations . | . . . . Recycling Units 5 | . 5 . . Reject 2 | . 2 . . Mask 2 | . 2 . . Tunnel 1 | . 1 . . Scanalyzers . | . . . . Garrison Access . | . . . . Data Cores Recovered . | . . . . Used . | . . . . Hacking Detections 8 | . 8 . . Full Trace Events . | . . . . Feedback Events . | . . . . Feedback Blocked . | . . . . Robot Schematics Acquired . | . . . . Robots Built . | . . . . Authchips . | . . . . Time . | . . . . Total Robot Build Rating . | . . . . Part Schematics Acquired . | . . . . Parts Built . | . . . . Authchips . | . . . . Time . | . . . . Total Part Build Rating . | . . . . Part Studies Acquired . | . . . . Parts Repaired . | . . . . Time . | . . . . Parts Recycled . | . . . . Recycled Matter . | . . . . Retrieved Matter . | . . . . Retrieved Components . | . . . . Parts Scanalyzed . | . . . . Part Schematics Acquired . | . . . . Parts Damaged . | . . . . Bothacking | -11 -10 -10 -8 ------------ Run | Yrd Mat Sub Scr Used RIF Installer . | . . . . Robots Hacked 1 | . 1 . . Non-combat 1 | . 1 . . Combat . | . . . . Robot Hacks Applied 1 | . 1 . . no_distress 1 | . 1 . . Relay Couplers Released . | . . . . Fabnet Peak Effective % . | . . . . Robots Rewired . | . . . . Allies Hacked . | . . . . Hacks Repelled . | . . . . Allies | -11 -10 -10 -8 -------- Run | Yrd Mat Sub Scr Total Allies 1 | . . . 1 Largest Group 1 | . . . 1 Highest-Rated Group 464 | . . . 464 Highest-Rated Ally 464 | . . . 464 Total Orders . | . . . . Ally Attacks 22 | . . . 22 Total Damage 2515 | . . . 2515 Kills 19 | . . . 19 Allies Corrupted . | . . . . Allies Melted . | . . . . X0-1V1 Amusement Gains 47 | . 7 . 40 Average Entertainment 3 | . 7 2 33 Good Acts 22 | . . 22 . Bad Acts 17 | . . 16 1 Intel | -11 -10 -10 -8 ------- Run | Yrd Mat Sub Scr Active Infowar (turns) 1065 | . 1065 . . Seismic 1065 | . 1065 . . Robot Analysis Total 4 | . 4 . . Derelict Logs Recovered 4 | . . 2 2 Drone Launches . | . . . . Drone Recoveries . | . . . . Exploration | -11 -10 -10 -8 ------------- Run | Yrd Mat Sub Scr Turns Passed 5138 | 295 1667 2176 1000 Spaces Moved 2876 | 138 1012 1176 550 Core 35 | 35 . . . Treads 1558 | . . 1008 550 Legs 1283 | 103 1012 168 . Wheels . | . . . . Hover . | . . . . Flight . | . . . . Fastest Speed 50 | 50 120 160 150 Average Speed 156 | 121 136 169 176 Slowest Speed 240 | 200 190 240 240 Overloaded Moves . | . . . . Propulsion Burnouts . | . . . . Robots Hopped . | . . . . Potential Cave-ins . | . . . . Cave-ins Triggered . | . . . . Exploration Rate (%) 53 | 6 98 55 53 Regions Visited 3 Branch Regions 2 Pre-discovered Areas 2 | . 2 . . Known Exits Taken . | . . . . Unknown Exits Taken 3 | 1 1 1 . Scrap Searched 10 | . . 7 3 Spaces Dug 3 | . 2 1 . Terrain Destroyed 52 | . 9 27 16 Melee 3 | . 2 1 . Projectile 6 | . . 1 5 AOE 43 | . 7 25 11 Terrain Rammed . | . . . . Walls Destroyed . | . . . . Machines Disabled . | . . . . Actions | -11 -10 -10 -8 --------- Run | Yrd Mat Sub Scr Total 3214 | 202 1162 1282 568 Wait 14 | . 11 3 . Move 2873 | 137 1011 1175 550 Hop . | . . . . Pick Up 42 | 18 13 10 1 Fast Attach 11 | . 5 4 2 Attach 13 | 7 1 3 2 Detach . | . . . . Swap 29 | . 15 13 1 Drop 33 | 3 12 15 3 Fire 143 | 37 68 31 7 Melee 26 | . 3 21 2 Ram . | . . . . Kick . | . . . . Crush . | . . . . Escape Stasis 7 | . . 7 . Rewire . | . . . . Trap 23 | . 23 . . Miscellaneous . | . . . . Route ------- -11/Scrapyard -10/Materials (discovered 6 exits: *Mat x3 / [*Min x2] / *Sub) -10/Subcaves (discovered 4 exits: *Mat x2 / Rec / *Scr) -8/Scraptown (discovered 1 exit: [*Fac]) History --------- Turn | Location | Event 6 | -11/Scrapyard | Discovered new exit (range 15) 296 | -11/Scrapyard | Entered Materials 331 | -10/Materials | Build established: Mutant 419 | -10/Materials | Discovered new exit (range 11) 602 | -10/Materials | Discovered new exit (range 15) 752 | -10/Materials | Discovered new exit (range 11) 796 | -10/Materials | Derelicts attacked the area 936 | -10/Materials | Discovered new exit (range 14) 1112 | -10/Materials | Discovered new exit (range 16) 1189 | -10/Materials | Discovered new exit (range 16) 1356 | -10/Materials | Learned 4 Recycling zone layouts 1433 | -10/Materials | Learned location of 3 exits from Materials 1560 | -10/Materials | Identified exit to Materials 1606 | -10/Materials | Learned Storage stockpile data 1663 | -10/Materials | Learned location of Storage (-8) 1694 | -10/Materials | Loaded intel: 16 trap records 1734 | -10/Materials | Learned Storage machine intel 1934 | -10/Materials | Build established: Scavenger-Mutant 1940 | -10/Materials | Prayed at D.C.S.S. Altar Unit 1963 | -10/Materials | Entered Subcaves 1964 | -10/Subcaves | Approached by a straggling Scientist 1980 | -10/Subcaves | Scientist uncovered a shortcut to Scraptown 2120 | -10/Subcaves | Disturbed a concealed Subdweller 2214 | -10/Subcaves | Shifting Twisted Machinery released Mak. Spear 2218 | -10/Subcaves | Shifting Twisted Machinery released Battle Rifle 2240 | -10/Subcaves | Build established: Mutant 2302 | -10/Subcaves | Matter capacity permanently improved by X0-1V1 (+200; -100 max core) 2540 | -10/Subcaves | Identified exit to Recycling 2540 | -10/Subcaves | X0-1V1 revealed exit location to -8/Recycling 2624 | -10/Subcaves | Visited Clippyterm 2629 | -10/Subcaves | Learned Factory trap positions 2659 | -10/Subcaves | X0-1V1 sent hostile S-10 Pest (x3) 2797 | -10/Subcaves | Discovered new exit (range 8) 2813 | -10/Subcaves | X0-1V1 activates XOMVISION 2845 | -10/Subcaves | Core integrity fell below 50% 2862 | -10/Subcaves | Core integrity restored by X0-1V1 (+22) 2942 | -10/Subcaves | Identified exit to Materials 2942 | -10/Subcaves | X0-1V1 revealed exit location to -8/Materials 3024 | -10/Subcaves | Visited triangular shrine 3036 | -10/Subcaves | Found Prototype Device 3100 | -10/Subcaves | A swath of the cavern ceiling suddenly collapsed 3278 | -10/Subcaves | Learned 8 Materials zone layouts 3557 | -10/Subcaves | A swath of the cavern ceiling suddenly collapsed 3557 | -10/Subcaves | X0-1V1 sent hostile G-34 Mercenary (x3) 3707 | -10/Subcaves | X0-1V1 whisked you away to safety 3771 | -10/Subcaves | X0-1V1 activates XOMVISION 3882 | -10/Subcaves | Core integrity restored by X0-1V1 (+36) 3930 | -10/Subcaves | X0-1V1 caused items to flee you 3954 | -10/Subcaves | X0-1V1 sent hostile S-10 Pest (x4) 3962 | -10/Subcaves | Core integrity restored by X0-1V1 (+36) 4129 | -10/Subcaves | X0-1V1 activates XOMVISION 4134 | -10/Subcaves | X0-1V1 sent hostile G-34 Mercenary (x4) 4139 | -10/Subcaves | Entered Scraptown 4446 | -8/Scraptown | Visited Comm Corps 4880 | -8/Scraptown | Build established: Derelict-Mutant 4882 | -8/Scraptown | Scanned Subdweller tech in exchange for log data 4887 | -8/Scraptown | Learned Factory security intel 4914 | -8/Scraptown | Discovered new exit (range 5) 5030 | -8/Scraptown | Visited Spacefarers 5086 | -8/Scraptown | Visited Shadow of the Wyrm 5097 | -8/Scraptown | X0-1V1 brought Wyrm Statue to life 5097 | -8/Scraptown | Attacked by Scraptown defenders 5139 | -8/Scraptown | Core integrity fell below 20% 5139 | -8/Scraptown | Destroyed by 8G-NYL(E) with Overtuned Barrage Gun Last Messages --------------- 05127_ QM-YY8(x) suffers critical hit (Burn). 05128_ X0-1V1: "The ol' switcheroo!" T0-NE2 form resolidifies at new position. BW-8QS(E) form resolidifies at new position. AC-VYF(x) form resolidifies at new position. Form resolidifies at new position. LR-VJM(x) form resolidifies at new position. QM-YY8(x) form resolidifies at new position. 05128_ Critical hit (Burn: +50). 05129_ J8-7LH(p): "Scrapalicious!" 05131_ BW-8QS(E) destroyed. 05131_ T0-NE2 destroyed. 05133_ Critical hit (Burn: +50). 05134_ Mak. Power Source destroyed. 05135_ Slug Cannon destroyed. 05135_ Grenade Launcher destroyed. 05135_ Critical hit (Burn: +50). 05136_ LR-VJM(x) Lgt. Ion Engine severed. 05137_ Adv. Treads destroyed. 05139_ X0-1V1 chortles! Map ----- +----------------------------------------------------+ | ###### ########### ##########"" """"#### | | ###### ######????## ##????????#" "#??? | | #""""" """""#####?# #########?#" ""#??? | | #" " " #?# """"""""#?#" """#??? | | """ ""#" " " "### ### " ""#?#" """#??? | | """ "#" " " "#"" """ "#?#"""""""#??? | | """ "#""""" """""#" """ " ""#?#######????? | | "" "###### ######" " """"""""#????????????? | | " "#""""" """""#" ##"""####????????????? | | ?"" ""#" " " "#" "" " ######???????????????? | | ### ###" " " "#" " #????????????????????? | | ??# " " "#"""""" #????????????????????? | | ??#####""""" """""####### #????????????????????? | | #?????###### ######?????# #????????????????????? | | ############ ############ ##???????????????????? | | E ????????????????????? | | ????????????????????? | | ######################## j ????????????????????? | | #?????????????????????? x ##???????????????????? | | #######???##??########## j ######### #?????????? | | """"""#???? ?##""""" # ????????? | | "## " " # " " # ????????? | | ] = "## "" " # # p ????????? | | !/[ "## " " # """ # xj ????????? | | ! "## "" # """ # x ????????? | | [*! "## " " # """ # @ ############????? | | [|[ "## " " ## """ # xxx #???????????????? | | ! = "## " ## """ # #???????????????# | | "## " " ## # #???????????????# | | """ ""## " " #???????????????# | | ### #### ""##""""" ##??????????????# | | ### ################## !*% ;???????????????# | | """ ""#??????????????# %= #???????????????# | | "#??????????????# *[ #???????????????# | | "" "#??????????????## #???????????????# | | "" "#??????????###??# #???????????????# | | "#????????### #### #???????????????# | | ""#???????## #; #???????????????# | | """""#??????## %[; #???????????????# | | """"""#??????# * != ##??????????????# | | """""????????# [[ %=/ "#??????????????# | | #####????????# [ %! ################# | | #######??????# =% # | | """X""#??????# =% ! | | " "#??????# % | | " "#??????### =% = | | " "#????????###" * | | " "#????????## | | " "#????????# | | "" """########### | +----------------------------------------------------+ Best States ------------- Heat Dissipation 25 Energy Generation 15 Energy Capacity 1370 Matter Stores 817 Matter Capacity 1000 Sight Range 22 Terrain Scan Density 10 Evasion (%) 55 Recoil Reduction 2 Item Schematics ----------------- None Robot Schematics ------------------ None Fabricated ------------ Nothing Repaired ---------- Nothing Studied --------- None Alien Tech Used ----------------- None Achievements -------------- Junior Dev Challenges ------------ None Game ------ Seed DataAntimissileNukerbomber Manual? 0 Play Time 00:44:43 Cumulative 411.9 hours Start 2026.09.07 @ 06:25:15 End 2026.09.07 @ 07:08:18 Sessions 1 Manual Loads 0 Difficulty Rogue Special Mode None Game No. 302 Rogue 292 Adventurer 0 Explorer 10 Win Type - Total 5 Types 5/0/0/0/0/0/0/0/0/0 Lore% 81 Gallery% 66 Achievement% 45 Wizard Run 0 Options --------- Layout 2 ASCII 0 Keyboard 0 Movement Arrows Keybinds 1 Fullscreen 1 Font 24/Terminus Map View 50x44 Zoom Use 0% Tactical HUD 1 Map Filters NONE Filters NONE Steam 1 RUN: a32ab46f-22c3-43fd-a9c7-96d60b3a2493